bitfinex-derivatives/quotes_ETHF0:USTF0_20250430
["timestamp","ask_amount","ask_price","bid_price","bid_amount"]
[1746054648270,5.47,1799.4,1799.3,4.31917]
[1746054648566,6.3214,1799.4,1799.3,4.31917]
[1746054649663,7.43271,1799.4,1799.3,4.31917]
[1746054650668,6.3214,1799.4,1799.3,4.31917]
[1746054650864,7.43271,1799.4,1799.3,4.31917]
[1746054653774,6.3214,1799.4,1799.3,4.31917]
[1746054654073,7.43271,1799.4,1799.3,4.31917]
[1746054654274,6.3214,1799.4,1799.3,4.31917]
[1746054654475,7.43271,1799.4,1799.3,4.31917]
[1746054654677,6.3214,1799.4,1799.3,4.31917]
[1746054656478,4.6794,1799.4,1799.3,4.31917]
[1746054660781,5.79071,1799.4,1799.3,4.31917]
[1746054660976,4.6794,1799.4,1799.3,4.31917]
[1746054661484,6.4167,1799.4,1799.3,4.31917]
[1746054664684,7.52801,1799.4,1799.3,4.31917]
[1746054667988,7.52801,1799.4,1799.3,3.2078]
[1746054668885,6.4167,1799.4,1799.3,4.31917]
[1746054669083,7.52801,1799.4,1799.3,4.31917]
[1746054670587,2.77848,1799.3,1798.7,5.98713]
[1746054670786,3.2078,1799.2,1798.9,1.11156]
[1746054670984,1.11155,1799.1,1799.0,1.11155]
[1746054671184,6.60525,1799.1,1799.0,1.11155]
[1746054671889,6.60525,1799.1,1798.8,4.909]
[1746054671890,1.11158,1799.0,1798.9,1.11156]
[1746054672089,3.64778,1799.0,1798.9,1.11156]
[1746054672790,1.11171,1798.8,1798.7,1.11169]
[1746054673182,4.93971,1798.8,1798.7,1.11169]
[1746054673383,6.62131,1798.8,1798.7,1.11169]
[1746054674392,1.11174,1798.7,1798.6,5.95248]
[1746054674591,1.11184,1798.6,1798.5,1.11184]
[1746054674792,1.92064,1798.6,1798.5,1.11184]
[1746054675194,5.74864,1798.6,1798.5,1.11184]
[1746054676198,1.11187,1798.5,1798.4,1.11188]
[1746054676394,2.83497,1798.5,1798.4,1.11188]
[1746054677286,2.5393,1798.5,1798.4,1.11188]
[1746054678194,0.8088,1798.6,1798.5,1.11187]
[1746054678697,1.9206,1798.6,1798.5,1.11187]
[1746054678897,1.11187,1798.5,1798.4,4.31969]
[1746054679092,2.69497,1798.5,1798.4,4.31969]
[1746054679394,7.31167,1798.5,1798.4,4.31969]
[1746054681399,1.11193,1798.4,1798.3,1.11195]
[1746054681697,2.78983,1798.4,1798.3,1.11195]
[1746054682109,6.61783,1798.4,1798.3,1.11195]
[1746054689506,1.11205,1798.2,1798.1,1.11207]
[1746054690108,1.94385,1798.2,1798.1,1.11207]
[1746054690311,5.77185,1798.2,1798.1,1.11207]
[1746054690712,8.97965,1798.2,1798.1,1.11207]
[1746054690908,1.11218,1798.1,1798.0,1.11212]
[1746054691105,1.11224,1798.0,1797.9,1.11218]
[1746054691516,2.68444,1798.0,1797.9,1.11218]
[1746054692217,6.51244,1798.0,1797.9,1.11218]
[1746054693023,5.4002,1798.0,1797.9,1.11218]
[1746054693718,5.4002,1798.0,1797.9,6.04298]
[1746054695016,6.51238,1798.0,1797.9,6.04298]
[1746054696020,6.51238,1798.0,1797.9,1.11218]
[1746054697027,1.1123,1797.9,1797.8,1.11227]
[1746054697216,2.8267,1797.9,1797.8,1.11227]
[1746054698116,6.6547,1797.9,1797.8,1.11227]
[1746054705934,3.828,1797.9,1797.8,1.11227]
[1746054706134,3.828,1797.9,1797.8,2.83847]
[1746054707235,7.38932,1798.1,1798.0,1.11218]
[1746054708042,3.738,1798.1,1798.0,1.11218]
[1746054708237,9.1719,1798.1,1798.0,2.85118]
[1746054709937,5.4339,1798.1,1798.0,2.85118]
[1746054711339,5.4339,1798.1,1798.0,7.85118]
[1746054711340,3.828,1798.1,1798.0,7.85118]
[1746054711641,3.828,1798.1,1798.0,2.85118]
[1746054712342,0.8318,1798.2,1798.1,1.11211]
[1746054712539,0.8318,1798.2,1798.1,6.00621]
[1746054713244,4.6598,1798.2,1798.1,6.00621]
[1746054713445,3.828,1798.2,1798.1,6.00621]
[1746054716350,1.5998,1798.3,1798.2,1.11205]
[1746054716646,1.5998,1798.3,1798.2,2.79205]
[1746054717147,5.4278,1798.3,1798.2,2.79205]
[1746054718145,1.5998,1798.3,1798.2,2.79205]
[1746054720153,5.4278,1798.3,1798.2,1.11205]
[1746054722249,5.4278,1798.3,1798.2,2.80985]
[1746054723255,3.828,1798.3,1798.2,2.80985]
[1746054724245,1.6619,1798.4,1798.3,1.11199]
[1746054724454,1.6619,1798.4,1798.3,2.85539]
[1746054724750,1.6619,1798.4,1798.3,6.06319]
[1746054725255,5.4899,1798.4,1798.3,6.06319]
[1746054727448,3.828,1798.4,1798.3,6.06319]
[1746054727846,2.32785,1798.4,1798.3,6.33267245]
[1746054728052,1.6797,1798.7,1798.6,1.1118]
[1746054728456,3.4064,1798.7,1798.6,1.1118]
[1746054729261,7.2344,1798.7,1798.6,1.1118]
[1746054730164,3.4064,1798.7,1798.6,1.1118]
[1746054730349,4.31928,1799.2,1799.1,1.1115]
[1746054730558,4.043,1799.2,1799.1,1.1115]
[1746054731361,7.871,1799.2,1799.1,1.1115]
[1746054731661,10.3026,1799.2,1799.1,1.1115]
[1746054731964,7.0948,1799.2,1799.1,1.1115]
[1746054736068,8.20623,1799.2,1799.1,1.1115]
[1746054736567,7.0948,1799.2,1799.1,1.1115]
[1746054736864,8.20623,1799.2,1799.1,1.1115]
[1746054737166,8.20623,1799.2,1799.0,3.2078]
[1746054737167,1.1115,1799.1,1799.0,4.3193]
[1746054737364,2.8349,1799.1,1799.0,4.3193]
[1746054737559,2.8349,1799.1,1799.0,1.1115]
[1746054738176,6.6629,1799.1,1799.0,1.1115]
[1746054742279,1.1116,1799.0,1798.9,1.11157]
[1746054742481,2.8196,1799.0,1798.9,1.11157]
[1746054743180,6.6476,1799.0,1798.9,1.11157]
[1746054745386,5.536,1799.0,1798.9,1.11157]
[1746054747587,6.64756,1799.0,1798.9,1.11157]
[1746054748084,1.7061,1799.0,1798.9,9.80057]
[1746054748288,1.7061,1799.0,1798.9,6.37667]
[1746054749190,1.5922,1799.1,1799.0,1.11156]
[1746054749390,1.5922,1799.1,1799.0,4.31936]
[1746054750086,5.4202,1799.1,1799.0,4.31936]
[1746054750294,5.4202,1799.1,1799.0,9.31936]
[1746054750295,0.64067,1799.1,1799.0,9.31936]
[1746054750489,1e-05,1799.1,1799.0,11.05546]
[1746054750886,1e-05,1799.1,1799.0,51.85546]
[1746054751087,1.6013,1799.5,1799.4,1.11131]
[1746054751386,1.6013,1799.5,1799.4,4.31911]
[1746054752093,5.4293,1799.5,1799.4,4.31911]
[1746054753285,1.6013,1799.5,1799.4,4.31911]
[1746054753996,1.6013,1799.5,1799.4,45.11911]
[1746054757499,2.71255,1799.5,1799.4,45.11911]
[1746054757797,2.71255,1799.5,1799.4,41.91131]
[1746054758396,6.54055,1799.5,1799.4,41.91131]
[1746054761397,6.54055,1799.5,1799.4,40.8]
[1746054761585,6.54055,1799.5,1799.4,1.11131]
[1746054763098,5.4293,1799.5,1799.4,1.11131]
[1746054767304,5.4293,1799.5,1799.4,2.83021]
[1746054767805,5.4293,1799.5,1799.4,43.63021]
[1746054768102,1.6013,1799.5,1799.4,43.63021]
[1746054769205,5.4293,1799.5,1799.4,43.63021]
[1746054770199,1.6013,1799.5,1799.4,43.63021]
[1746054771503,1.7157,1799.8,1799.7,1.11112]
[1746054771709,2.5749,1799.8,1799.7,1.11112]
[1746054772010,0.8592,1799.8,1799.7,1.11112]
[1746054772208,1.7449,1800.1,1800.0,1.11094]
[1746054772410,3.3811,1800.1,1800.0,1.11094]
[1746054772713,4.49198,1800.1,1800.0,1.11094]
[1746054773208,6.3726,1800.1,1800.0,1.11094]
[1746054778006,6.3726,1800.1,1800.0,4.31874]
[1746054779105,2.5446,1800.1,1800.0,4.31874]
[1746054779315,0.7997,1800.1,1800.0,4.31874]
[1746054779912,0.7997,1800.1,1800.0,45.11874]
[1746054781611,2.3839,1800.1,1800.0,45.11874]
[1746054783113,6.2119,1800.1,1800.0,45.11874]
[1746054786417,6.2119,1800.1,1800.0,41.91094]
[1746054786620,7.32278,1800.1,1800.0,41.91094]
[1746054788013,7.32278,1800.1,1800.0,40.8]
[1746054788215,1.11094,1800.0,1799.9,1.11094]
[1746054788418,3.54464,1800.0,1799.9,1.11094]
[1746054788614,3.54464,1800.0,1799.9,41.91094]
[1746054789119,7.37264,1800.0,1799.9,41.91094]
[1746054790516,6.2617,1800.0,1799.9,41.91094]
[1746054790719,7.37264,1800.0,1799.9,41.91094]
[1746054791521,6.2617,1800.0,1799.9,41.91094]
[1746054791720,7.37264,1800.0,1799.9,41.91094]
[1746054794334,6.2617,1800.0,1799.9,41.91094]
[1746054794528,7.37264,1800.0,1799.9,41.91094]
[1746054796422,6.2617,1800.0,1799.9,41.91094]
[1746054797030,6.2617,1800.0,1799.9,43.55784]
[1746054797730,5.4657,1800.0,1799.9,43.55784]
[1746054798730,3.828,1800.0,1799.9,43.55784]
[1746054799132,6.3582,1800.1,1800.0,1.11094]
[1746054799331,6.3582,1800.1,1800.0,2.74234]
[1746054800229,6.3582,1800.1,1800.0,46.75014]
[1746054801825,3.828,1800.1,1800.0,46.75014]
[1746054802721,5.472,1800.1,1800.0,46.75014]
[1746054803131,1.644,1800.1,1800.0,46.75014]
[1746054804230,5.472,1800.1,1800.0,46.75014]
[1746054804635,5.472,1800.1,1800.0,43.54234]
[1746054804836,6.3204,1800.1,1800.0,46.75014]
[1746054805435,7.43128,1800.1,1800.0,41.91094]
[1746054806735,6.3204,1800.1,1800.0,41.91094]
[1746054807636,7.43128,1800.1,1800.0,41.91094]
[1746054809035,6.3204,1800.1,1800.0,41.91094]
[1746054809235,6.3204,1800.1,1800.0,45.11874]
[1746054814244,6.3204,1800.1,1800.0,46.75474]
[1746054815243,6.3204,1800.1,1800.0,45.11874]
[1746054816845,6.3204,1800.1,1800.0,46.81494]
[1746054818957,6.3204,1800.1,1800.0,45.11874]
[1746054840272,1.11094,1800.0,1799.9,1.11096]
[1746054840473,1.5905,1800.0,1799.9,1.11096]
[1746054840673,2.70144,1800.0,1799.9,1.11096]
[1746054840974,2.70144,1800.0,1799.9,41.91096]
[1746054841274,6.52944,1800.0,1799.9,41.91096]
[1746054845274,1.111,1799.9,1799.8,1.111]
[1746054845476,3.6096,1799.9,1799.8,1.111]
[1746054845676,3.6096,1799.9,1799.8,41.911]
[1746054845976,3.6096,1799.9,1799.8,1.111]
[1746054846174,7.4376,1799.9,1799.8,1.111]
[1746054846472,7.4376,1799.9,1799.8,41.911]
[1746054852978,1.11112,1799.7,1799.6,4.31891]
[1746054853176,1.11124,1799.6,1799.5,1.11119]
[1746054853382,3.67004,1799.6,1799.5,1.11119]
[1746054854281,7.49804,1799.6,1799.5,1.11119]
[1746054854581,1.11125,1799.5,1799.4,4.31905]
[1746054854772,3.51245,1799.5,1799.4,4.31905]
[1746054855175,7.34045,1799.5,1799.4,4.31905]
[1746054855779,6.2292,1799.5,1799.4,4.31905]
[1746054857781,6.2292,1799.5,1799.4,5.96545]
[1746054865089,6.2292,1799.5,1799.4,4.31905]
[1746054868890,6.2292,1799.5,1799.4,5.97845]
[1746054869092,6.2292,1799.5,1799.4,46.77845]
[1746054869589,3.828,1799.5,1799.4,46.77845]
[1746054869797,2.38056,1799.5,1799.4,46.77845]
[1746054870088,1.04604,1799.5,1799.4,46.77845]
[1746054870288,0.8667,1799.7,1799.6,1.11119]
[1746054870489,0.8667,1799.7,1799.6,4.31899]
[1746054871293,4.6947,1799.7,1799.6,4.31899]
[1746054873094,3.828,1799.7,1799.6,4.31899]
[1746054874197,1.6535,1800.0,1799.7,2.77768]
[1746054874498,0.8584,1800.0,1799.9,1.111]
[1746054874698,3.3688,1800.0,1799.9,1.111]
[1746054875193,7.1968,1800.0,1799.9,1.111]
[1746054881694,7.1968,1800.0,1799.9,2.8308]
[1746054882602,6.4017,1800.0,1799.9,2.8308]
[1746054883103,6.4017,1800.0,1799.9,43.6308]
[1746054888206,6.4017,1800.0,1799.9,41.911]
[1746054894710,6.4017,1800.0,1799.9,1.111]
[1746054900613,11.4017,1800.0,1799.3,3.2078]
[1746054900820,1.11122,1799.6,1799.5,1.11123]
[1746054901612,1.11133,1799.4,1799.1,2.77875]
[1746054901817,2.4878,1799.3,1799.2,1.11143]
[1746054902007,2.4878,1799.3,1799.2,41.91143]
[1746054902208,2.4878,1799.3,1799.2,45.11923]
[1746054903118,6.3158,1799.3,1799.2,46.79913]
[1746054904515,3.828,1799.3,1799.2,55.40913]
[1746054905329,5.876,1799.6,1799.5,1.11125]
[1746054905519,1.6818,1799.5,1799.4,1.11131]
[1746054905721,1.6818,1799.5,1799.4,5.92411]
[1746054905922,1.6638,1799.8,1799.7,1.11112]
[1746054906220,7.1736,1799.8,1799.7,1.11112]
[1746054907326,8.28466,1799.8,1799.7,1.11112]
[1746054909028,7.1736,1799.8,1799.7,1.11112]
[1746054909920,5.5098,1799.8,1799.7,2.74362]
[1746054910615,5.5098,1799.8,1799.7,7.74362]
[1746054910616,3.828,1799.8,1799.7,7.74362]
[1746054911228,2.3824,1800.0,1799.7,7.74362]
[1746054911229,2.3824,1800.0,1799.9,1.111]
[1746054911430,2.3824,1800.0,1799.9,4.3188]
[1746054911919,2.3824,1800.0,1799.9,5.9513]
[1746054912122,6.2104,1800.0,1799.9,5.9513]
[1746054913134,6.2104,1800.0,1799.9,4.3188]
[1746054913433,7.32134,1800.0,1799.9,4.3188]
[1746054914231,7.32134,1800.0,1799.9,3.2078]
[1746054914734,1.111,1799.9,1799.8,1.11102]
[1746054914918,3.5213,1799.9,1799.8,1.11102]
[1746054915232,7.3493,1799.9,1799.8,1.11102]
[1746054916533,6.2383,1799.9,1799.8,1.11102]
[1746054917429,7.3493,1799.9,1799.8,1.11102]
[1746054919028,6.2383,1799.9,1799.8,1.11102]
[1746054919633,7.3493,1799.9,1799.8,1.11102]
[1746054919935,1.11108,1799.8,1799.7,1.11107]
[1746054920126,6.59098,1799.8,1799.7,1.11107]
[1746054920840,1.11112,1799.7,1799.6,4.31894]
[1746054921137,3.59762,1799.7,1799.6,1.11114]
[1746054922237,1.11121,1799.6,1799.5,1.11119]
[1746054922441,3.57151,1799.6,1799.5,1.11119]
[1746054923230,7.39951,1799.6,1799.5,1.11119]
[1746054923531,6.2883,1799.6,1799.5,1.11119]
[1746054924030,5.4897,1799.6,1799.5,1.11119]
[1746054924230,6.2883,1799.6,1799.5,1.11119]
[1746054924426,3.828,1799.6,1799.5,1.11119]
[1746054924628,3.828,1799.6,1799.5,3.50209]
[1746054925332,3.828,1799.6,1799.5,7.11009]
[1746054925533,3.828,1799.6,1799.5,12.11009]
[1746054926142,1.6154,1799.9,1799.8,1.11106]
[1746054926347,1.6154,1799.9,1799.8,4.31886]
[1746054926638,1.1111,1799.8,1799.6,2.77783]
[1746054926828,2.4157,1799.7,1799.6,1.11119]
[1746054927028,3.2549,1799.7,1799.6,1.11119]
[1746054927839,1.6154,1799.7,1799.6,1.11119]
[1746054928037,1.6154,1799.7,1799.6,2.69309]
[1746054928235,5.4434,1799.7,1799.6,2.69309]
[1746054928733,3.828,1799.7,1799.6,2.69309]
[1746054931438,1.19024,1799.7,1799.6,7.69309]
[1746054931636,0.7892,1800.0,1799.9,1.111]
[1746054931937,0.7892,1800.0,1799.9,4.3188]
[1746054932126,2.4677,1800.0,1799.9,4.3188]
[1746054932332,6.2957,1800.0,1799.9,6.0592]
[1746054934236,6.2957,1800.0,1799.9,4.3188]
[1746054944944,6.2957,1800.0,1799.9,1.111]
[1746054946042,6.2957,1800.0,1799.9,4.3188]
[1746054946242,6.2957,1800.0,1799.9,1.111]
[1746054946845,6.2957,1800.0,1799.9,4.3188]
[1746054952051,7.40664,1800.0,1799.9,4.3188]
[1746054952253,7.40664,1800.0,1799.9,1.111]
[1746054954860,6.2957,1800.0,1799.9,1.111]
[1746054955954,6.2957,1800.0,1799.5,5.98591]
[1746054955955,9.07307,1800.0,1799.5,5.98591]
[1746054956165,1.1111,1799.8,1799.7,1.1111]
[1746054956552,1.9581,1799.8,1799.7,1.1111]
[1746054957157,5.7861,1799.8,1799.7,1.1111]
[1746054957358,4.675,1799.8,1799.7,1.1111]
[1746054957559,5.78606,1799.8,1799.7,1.1111]
[1746054957749,7.37666,1799.8,1799.7,1.1111]
[1746054958059,6.2656,1799.8,1799.7,1.1111]
[1746054958261,7.37666,1799.8,1799.7,1.1111]
[1746054959560,6.2656,1799.8,1799.7,1.1111]
[1746054959756,5.4186,1799.8,1799.7,1.1111]
[1746054959957,3.828,1799.8,1799.7,4.3189]
[1746054960157,3.828,1799.8,1799.7,5.9058]
[1746054963158,5.403,1799.8,1799.7,1.1111]
[1746054966968,5.403,1799.8,1799.7,4.3189]
[1746054967663,5.403,1799.8,1799.7,5.1663]
[1746054968264,5.403,1799.8,1799.7,6.8496]
[1746054969969,5.403,1799.8,1799.7,6.0022]
[1746054970171,5.403,1799.8,1799.7,4.3189]
[1746054977275,6.51406,1799.8,1799.7,4.3189]
[1746054977471,6.51406,1799.8,1799.7,3.2078]
[1746054977668,1.11112,1799.7,1799.6,1.11115]
[1746054977868,3.70992,1799.7,1799.5,4.31899]
[1746054978074,0.8585,1799.6,1799.5,4.31899]
[1746054978274,2.603,1799.6,1799.5,4.31899]
[1746054978576,3.71423,1799.6,1799.3,6.8098]
[1746054978775,1.7445,1799.5,1799.4,1.11131]
[1746054979077,2.85575,1799.5,1799.4,1.11131]
[1746054979273,6.68375,1799.5,1799.4,1.11131]
[1746054981376,1.11131,1799.4,1799.3,4.31914]
[1746054981580,3.68381,1799.4,1799.3,4.31914]
[1746054982079,7.51181,1799.4,1799.3,4.31914]
[1746054984081,6.4005,1799.4,1799.3,4.31914]
[1746054984281,7.51181,1799.4,1799.3,4.31914]
[1746054984481,6.4005,1799.4,1799.3,4.31914]
[1746054984883,7.51181,1799.4,1799.3,4.31914]
[1746054986477,7.51181,1799.4,1799.3,1.11134]
[1746054988079,1.11137,1799.3,1799.2,41.91138]
[1746054988278,3.52787,1799.3,1799.2,41.91138]
[1746054989282,7.35587,1799.3,1799.2,41.91138]
[1746054991187,7.35587,1799.3,1799.2,40.8]
[1746054991686,1.1115,1799.1,1799.0,1.11152]
[1746054991888,1.11161,1799.0,1798.9,1.11159]
[1746054992280,1.11161,1799.0,1798.9,4.31939]
[1746054992476,3.69261,1799.0,1798.9,4.31939]
[1746054992887,2.581,1799.0,1798.9,4.31939]
[1746054993081,7.52056,1799.0,1798.9,4.31939]
[1746054995191,7.52056,1799.0,1798.9,3.2078]
[1746054995780,7.52056,1799.0,1798.9,4.31942]
[1746054996893,6.409,1799.0,1798.9,4.31942]
[1746054999389,3.828,1799.0,1798.9,4.31942]
[1746054999589,3.828,1799.0,1798.9,10.15662]
[1746054999797,3.828,1799.0,1798.9,5.15662]
[1746055000090,1.6045,1799.2,1799.1,1.1115]
[1746055000295,0.8545,1799.3,1799.2,1.11143]
[1746055000496,1.6045,1799.3,1799.2,2.74563]
[1746055001097,5.4325,1799.3,1799.2,2.74563]
[1746055001391,3.828,1799.3,1799.2,2.74563]
[1746055001596,3.828,1799.3,1799.2,3.61543]
[1746055005500,3.828,1799.3,1799.2,44.41543]
[1746055006300,3.2053,1799.6,1799.5,1.11125]
[1746055006700,1.5794,1799.6,1799.5,1.11125]
[1746055006901,3.2078,1799.8,1799.7,1.11112]
[1746055007294,1.5741,1799.8,1799.7,1.11112]
[1746055007900,1.5741,1799.8,1799.7,2.79202]
[1746055008106,5.4021,1799.8,1799.7,2.79202]
[1746055008807,5.4021,1799.8,1799.7,1.11112]
[1746055009807,6.51316,1799.8,1799.7,1.11112]
[1746055010007,5.4021,1799.8,1799.7,1.11112]
[1746055011301,6.51316,1799.8,1799.7,1.11112]
[1746055011700,1.11112,1799.7,1799.6,4.31895]
[1746055011909,2.74492,1799.7,1799.6,3.2078]
[1746055012101,1.11119,1799.6,1799.5,1.1112]
[1746055012302,4.43739,1799.6,1799.5,1.1112]
[1746055013104,8.26539,1799.6,1799.5,1.1112]
[1746055019513,1.11129,1799.5,1799.4,1.11127]
[1746055019718,2.71029,1799.5,1799.4,1.11127]
[1746055020115,6.53829,1799.5,1799.4,1.11127]
[1746055021123,6.53829,1799.5,1799.4,4.31907]
[1746055021312,5.427,1799.5,1799.4,4.31907]
[1746055021516,6.53825,1799.5,1799.4,4.31907]
[1746055022016,5.427,1799.5,1799.4,4.31907]
[1746055023223,6.53825,1799.5,1799.4,4.31907]
[1746055024021,6.53825,1799.5,1799.4,3.2078]
[1746055024222,6.53825,1799.5,1799.4,4.31911]
[1746055025223,6.53825,1799.5,1799.4,3.2078]
[1746055025426,5.427,1799.5,1799.2,44.0078]
[1746055025619,1.1115,1799.1,1799.0,1.11152]
[1746055026227,4.9395,1799.1,1799.0,41.91152]
[1746055026418,6.6258,1799.1,1799.0,41.91152]
[1746055028827,5.5143,1799.1,1799.0,41.91152]
[1746055030332,3.828,1799.1,1799.0,44.49632]
[1746055036024,3.828,1799.1,1799.0,48.09532]
[1746055038537,3.828,1799.1,1799.0,41.91152]
[1746055038740,5.5043,1799.1,1799.0,41.91152]
[1746055039740,3.828,1799.1,1799.0,43.65082]
[1746055045240,3.828,1799.1,1799.0,41.91152]
[1746055045545,5.4627,1799.1,1799.0,41.91152]
[1746055046853,5.4627,1799.1,1799.0,43.51562]
[1746055047449,5.4627,1799.1,1799.0,41.91152]
[1746055048651,7.1815,1799.1,1799.0,41.91152]
[1746055055066,7.1815,1799.1,1799.0,43.61142]
[1746055057759,3.828,1799.1,1799.0,43.61142]
[1746055058249,1.6142,1799.3,1799.2,1.11143]
[1746055058449,1.6142,1799.3,1799.2,4.31923]
[1746055059258,5.4422,1799.3,1799.2,4.31923]
[1746055067467,6.55357,1799.3,1799.2,3.2078]
[1746055068469,6.55357,1799.3,1799.2,4.31923]
[1746055071369,1.1115,1799.2,1799.1,1.11143]
[1746055071570,2.701,1799.2,1799.1,1.11143]
[1746055072265,6.529,1799.2,1799.1,1.11143]
[1746055072571,6.529,1799.2,1799.0,45.11931]
[1746055072771,3.2827,1799.1,1799.0,45.11931]
[1746055072971,4.3942,1799.1,1799.0,45.11931]
[1746055073174,8.2222,1799.1,1799.0,45.11931]
[1746055073475,7.1107,1799.1,1799.0,45.11931]
[1746055073878,8.2222,1799.1,1799.0,45.11931]
[1746055075887,8.2222,1799.1,1799.0,44.0078]
[1746055076089,8.2222,1799.1,1799.0,45.11936]
[1746055076585,21.5827,1799.1,1798.3,12.26587454]
[1746055076786,1.11187,1798.5,1798.3,11.15392454]
[1746055077189,4.93987,1798.5,1798.3,11.15392454]
[1746055077588,6.52557,1798.5,1798.3,11.15392454]
[1746055077886,1.11193,1798.4,1798.3,11.15392454]
[1746055078087,6.52563,1798.4,1798.3,11.15392454]
[1746055078281,10.12163,1798.4,1798.3,11.15392454]
[1746055081893,9.0097,1798.4,1798.1,1.11206]
[1746055082094,1.11209,1798.2,1798.1,1.11206]
[1746055082589,2.74579,1798.2,1798.1,1.11206]
[1746055083093,6.57379,1798.2,1798.1,1.11206]
[1746055084093,1.11211,1798.1,1798.0,4.31994]
[1746055084295,2.85751,1798.1,1798.0,4.31994]
[1746055084892,1.11228,1797.9,1797.8,3.2078]
[1746055085085,1.11228,1797.9,1797.8,4.7842]
[1746055085592,1.11228,1797.9,1797.8,3.2078]
[1746055085790,1.94578,1797.9,1797.8,3.2078]
[1746055086184,5.77378,1797.9,1797.8,3.2078]
[1746055087483,1.11236,1797.7,1797.6,4.7842]
[1746055087689,1.11236,1797.7,1797.6,5.89662]
[1746055088196,4.94036,1797.7,1797.6,5.89662]
[1746055088396,6.54386,1797.7,1797.6,5.89662]
[1746055088598,6.54386,1797.7,1797.6,3.2078]
[1746055090998,1.11248,1797.5,1797.4,2.84745]
[1746055091598,2.71328,1797.5,1797.4,2.84745]
[1746055092095,3.828,1797.7,1797.6,1.11242]
[1746055092297,1.6008,1797.7,1797.6,1.11242]
[1746055093185,6.8712,1797.8,1797.7,1.11236]
[1746055093790,6.0141,1797.8,1797.7,1.11236]
[1746055094193,10.9544,1797.8,1797.7,1.11236]
[1746055094394,9.8421,1797.8,1797.7,1.11236]
[1746055095201,7.3564,1797.8,1797.7,1.11236]
[1746055095396,6.2441,1797.8,1797.7,1.11236]
[1746055095900,7.3564,1797.8,1797.7,1.11236]
[1746055098099,1.11236,1797.7,1797.6,1.11238]
[1746055098406,1.11242,1797.6,1797.5,4.32025]
[1746055098599,1.11242,1797.6,1797.5,3.2078]
[1746055098798,2.70492,1797.6,1797.5,3.2078]
[1746055099106,6.53292,1797.6,1797.5,3.2078]
[1746055099603,6.53292,1797.6,1797.5,4.32028]
[1746055099994,6.53292,1797.6,1797.5,1.11248]
[1746055101203,1.11253,1797.5,1797.4,1.1125]
[1746055101400,2.70503,1797.5,1797.4,1.1125]
[1746055101794,1.5925,1797.5,1797.4,1.1125]
[1746055102088,5.4205,1797.5,1797.4,1.1125]
[1746055102500,3.828,1797.5,1797.4,5.9251]
[1746055103404,7.5521,1797.7,1797.6,1.11242]
[1746055103600,8.66446,1797.7,1797.6,4.32022]
[1746055104205,12.49246,1797.7,1797.6,4.32022]
[1746055105398,6.61646,1797.7,1797.6,3.2078]
[1746055105603,1.11251,1797.5,1797.4,3.2078]
[1746055106201,3.58631,1797.5,1797.4,3.2078]
[1746055106802,3.58631,1797.5,1797.4,4.32035]
[1746055106994,2.4738,1797.5,1797.3,1.11256]
[1746055107194,2.76525,1797.4,1797.3,1.11256]
[1746055107694,1.6527,1797.4,1797.2,5.94322]
[1746055107894,2.4226,1797.3,1797.2,5.94322]
[1746055111403,2.4226,1797.3,1797.2,4.32042]
[1746055113103,6.2506,1797.3,1797.2,4.32042]
[1746055113304,6.2506,1797.3,1797.2,3.2078]
[1746055113305,7.36321,1797.3,1797.2,3.2078]
[1746055114003,1.11267,1797.2,1797.1,1.11268]
[1746055114204,3.65467,1797.2,1797.1,1.11268]
[1746055114606,1.11273,1797.1,1797.0,4.32054]
[1746055114904,1.7145,1797.1,1797.0,4.32054]
[1746055115306,5.5425,1797.1,1797.0,4.32054]
[1746055115705,5.53916991,1797.1,1797.0,4.32054]
[1746055115906,5.53916991,1797.1,1797.0,5.93634]
[1746055117309,5.53916991,1797.1,1797.0,4.32054]
[1746055118406,6.65189991,1797.1,1797.0,4.32054]
[1746055121010,6.65189991,1797.1,1797.0,3.2078]
[1746055121411,1.11279,1797.0,1796.9,1.11281]
[1746055121611,3.54849,1797.0,1796.9,1.11281]
[1746055122009,1.11286,1796.9,1796.8,3.2078]
[1746055122213,1.94966,1796.9,1796.8,3.2078]
[1746055122510,1.11304,1796.7,1796.6,1.11302]
[1746055123113,4.94104,1796.7,1796.6,1.11302]
[1746055123316,1.11307,1796.6,1796.5,1.11304]
[1746055123518,1.98017,1796.6,1796.5,1.11304]
[1746055123908,0.8671,1796.6,1796.5,1.11304]
[1746055124110,11.42372,1796.9,1796.6,1.11304]
[1746055124420,0.8671,1796.8,1796.7,1.11298]
[1746055125210,4.6951,1796.8,1796.7,1.11298]
[1746055125918,5.80802,1796.8,1796.7,1.11298]
[1746055126722,4.6951,1796.8,1796.7,1.11298]
[1746055129421,5.80802,1796.8,1796.7,1.11298]
[1746055129912,4.6951,1796.8,1796.7,1.11298]
[1746055130113,5.80802,1796.8,1796.7,1.11298]
[1746055131319,4.6951,1796.8,1796.7,1.11298]
[1746055131715,5.80802,1796.8,1796.7,1.11298]
[1746055132421,4.6951,1796.8,1796.7,1.11298]
[1746055133122,5.80802,1796.8,1796.7,1.11298]
[1746055134621,4.6951,1796.8,1796.7,1.11298]